[Event "Titled Tuesday Blitz June 21 Late 2022"]
[White "Shapiro, Daniel"]
[Black "Melikhov, Evgeny V."]
[WhiteFideId "2001780"]
[BlackFideId "4122046"]
[WhiteElo "2276"]
[BlackElo "1904"]
[Result "0-1"]
[Round "10"]
[TimeControl "180+1"]
[Date "2022.06.22"]
[WhiteClock "0:00:38"]
[BlackClock "0:01:30"]

1. d4 {[%clk 0:02:07]}  Nf6 {[%clk 0:02:58]} 2. c4 {[%clk 0:02:06]}  e6 {[%clk 0:02:58]} 3. g3 {[%clk 0:02:06]}  d5 {[%clk 0:02:58]} 4. Nf3 {[%clk 0:02:05]}  dxc4 {[%clk 0:02:58]} 5. Bg2 {[%clk 0:02:05]}  Nc6 {[%clk 0:02:57]} 6. Qa4 {[%clk 0:02:04]}  Bb4+ {[%clk 0:02:56]} 7. Bd2 {[%clk 0:02:03]}  Bd6 {[%clk 0:02:56]} 8. Qxc4 {[%clk 0:02:01]}  O-O {[%clk 0:02:56]} 9. Nc3 {[%clk 0:01:59]}  e5 {[%clk 0:02:56]} 10. O-O {[%clk 0:01:58]}  exd4 {[%clk 0:02:55]} 11. Nxd4 {[%clk 0:01:57]}  Nxd4 {[%clk 0:02:56]} 12. Qxd4 {[%clk 0:01:57]}  c6 {[%clk 0:02:56]} 13. Bg5 {[%clk 0:01:55]}  Be7 {[%clk 0:02:56]} 14. Rfd1 {[%clk 0:01:55]}  Qxd4 {[%clk 0:02:55]} 15. Rxd4 {[%clk 0:01:55]}  Be6 {[%clk 0:02:47]} 16. b4 {[%clk 0:01:52]}  Rfd8 {[%clk 0:02:46]} 17. Rad1 {[%clk 0:01:46]}  Rxd4 {[%clk 0:02:43]} 18. Rxd4 {[%clk 0:01:45]}  h6 {[%clk 0:02:41]} 19. Bd2 {[%clk 0:01:37]}  Rd8 {[%clk 0:02:09]} 20. Rxd8+ {[%clk 0:01:35]}  Bxd8 {[%clk 0:02:10]} 21. a4 {[%clk 0:01:26]}  a6 {[%clk 0:02:07]} 22. b5 {[%clk 0:01:25]}  cxb5 {[%clk 0:02:06]} 23. axb5 {[%clk 0:01:25]}  axb5 {[%clk 0:02:04]} 24. Nxb5 {[%clk 0:01:24]}  Bc4 {[%clk 0:02:00]} 25. Nd6 {[%clk 0:01:21]}  Bxe2 {[%clk 0:01:59]} 26. Nxb7 {[%clk 0:01:22]}  Bb6 {[%clk 0:01:59]} 27. h3 {[%clk 0:01:19]}  Bd3 {[%clk 0:01:53]} 28. Bb4 {[%clk 0:01:12]}  Ne4 {[%clk 0:01:50]} 29. Bxe4 {[%clk 0:01:03]}  Bxe4 {[%clk 0:01:49]} 30. Bc5 {[%clk 0:01:01]}  Bc7 {[%clk 0:01:46]} 31. Nd6 {[%clk 0:01:01]}  Bd5 {[%clk 0:01:44]} 32. Nf5 {[%clk 0:01:01]}  Kh7 {[%clk 0:01:41]} 33. Bd4 {[%clk 0:01:00]}  f6 {[%clk 0:01:39]} 34. Ne3 {[%clk 0:00:56]}  Be6 {[%clk 0:01:38]} 35. Kg2 {[%clk 0:00:54]}  h5 {[%clk 0:01:38]} 36. h4 {[%clk 0:00:53]}  Kg6 {[%clk 0:01:36]} 37. Bc5 {[%clk 0:00:49]}  Kf7 {[%clk 0:01:35]} 38. Bb4 {[%clk 0:00:49]}  Bb3 {[%clk 0:01:34]} 39. Bc5 {[%clk 0:00:48]}  Ke6 {[%clk 0:01:33]} 40. Bf8 {[%clk 0:00:48]}  g6 {[%clk 0:01:33]} 41. Bb4 {[%clk 0:00:47]}  f5 {[%clk 0:01:32]} 42. Kf3 {[%clk 0:00:40]}  Ba4 {[%clk 0:01:30]} 43. Ng2 {[%clk 0:00:38]}  Bc6+ {[%clk 0:01:30]} 0-1


[Site "https://www.chess.com"]

[Event "Titled Tuesday Blitz June 21 Late 2022"]
[White "Sibilio, Mario"]
[Black "Do Valle Cardoso, Lucas"]
[WhiteFideId "800422"]
[BlackFideId "2163144"]
[WhiteElo "2296"]
[BlackElo "2277"]
[Result "0-1"]
[Round "10"]
[TimeControl "180+1"]
[Date "2022.06.22"]
[WhiteClock "0:00:02"]
[BlackClock "0:00:13"]

1. Nf3 {[%clk 0:02:58]}  d5 {[%clk 0:02:58]} 2. d3 {[%clk 0:02:56]}  Nf6 {[%clk 0:02:53]} 3. g3 {[%clk 0:02:49]}  c5 {[%clk 0:02:53]} 4. Bg2 {[%clk 0:02:46]}  Nc6 {[%clk 0:02:53]} 5. O-O {[%clk 0:02:42]}  e6 {[%clk 0:02:52]} 6. Nbd2 {[%clk 0:02:34]}  Be7 {[%clk 0:02:51]} 7. e4 {[%clk 0:02:33]}  O-O {[%clk 0:02:49]} 8. Re1 {[%clk 0:02:26]}  b5 {[%clk 0:02:48]} 9. c3 {[%clk 0:02:10]}  Bb7 {[%clk 0:02:47]} 10. e5 {[%clk 0:02:07]}  Nd7 {[%clk 0:02:47]} 11. d4 {[%clk 0:02:07]}  Qc7 {[%clk 0:02:39]} 12. Nf1 {[%clk 0:02:01]}  Rfc8 {[%clk 0:02:39]} 13. Bf4 {[%clk 0:01:52]}  Nf8 {[%clk 0:02:38]} 14. h4 {[%clk 0:01:50]}  Ng6 {[%clk 0:02:23]} 15. Be3 {[%clk 0:01:49]}  h6 {[%clk 0:02:14]} 16. h5 {[%clk 0:01:32]}  Nf8 {[%clk 0:02:14]} 17. N1h2 {[%clk 0:01:26]}  Nh7 {[%clk 0:02:13]} 18. Ng4 {[%clk 0:01:24]}  cxd4 {[%clk 0:02:10]} 19. Nxd4 {[%clk 0:01:17]}  Nxd4 {[%clk 0:02:05]} 20. Bxd4 {[%clk 0:01:14]}  a5 {[%clk 0:01:48]} 21. f4 {[%clk 0:01:06]}  b4 {[%clk 0:01:37]} 22. Rc1 {[%clk 0:01:01]}  bxc3 {[%clk 0:01:36]} 23. Rxc3 {[%clk 0:00:58]}  Qd8 {[%clk 0:01:37]} 24. Ree3 {[%clk 0:00:44]}  Rxc3 {[%clk 0:01:36]} 25. Rxc3 {[%clk 0:00:43]}  Rc8 {[%clk 0:01:36]} 26. Qc2 {[%clk 0:00:34]}  Rxc3 {[%clk 0:01:21]} 27. Qxc3 {[%clk 0:00:33]}  Bb4 {[%clk 0:01:15]} 28. Qc2 {[%clk 0:00:31]}  Qc8 {[%clk 0:01:12]} 29. Qxc8+ {[%clk 0:00:29]}  Bxc8 {[%clk 0:01:13]} 30. Bf1 {[%clk 0:00:29]}  Nf8 {[%clk 0:01:13]} 31. a3 {[%clk 0:00:22]}  Be7 {[%clk 0:00:54]} 32. Kf2 {[%clk 0:00:21]}  a4 {[%clk 0:00:45]} 33. Ke3 {[%clk 0:00:19]}  Bd7 {[%clk 0:00:46]} 34. Nf2 {[%clk 0:00:19]}  Bc6 {[%clk 0:00:44]} 35. Nd1 {[%clk 0:00:18]}  Nd7 {[%clk 0:00:41]} 36. Nc3 {[%clk 0:00:18]}  Nc5 {[%clk 0:00:40]} 37. Bb5 {[%clk 0:00:16]}  Bxb5 {[%clk 0:00:39]} 38. Nxb5 {[%clk 0:00:16]}  Nb3 {[%clk 0:00:38]} 39. Nc3 {[%clk 0:00:14]}  Kf8 {[%clk 0:00:28]} 40. Nxa4 {[%clk 0:00:12]}  Ke8 {[%clk 0:00:28]} 41. Kd3 {[%clk 0:00:10]}  Kd7 {[%clk 0:00:29]} 42. Bf2 {[%clk 0:00:09]}  Kc6 {[%clk 0:00:28]} 43. Kc2 {[%clk 0:00:08]}  Na5 {[%clk 0:00:27]} 44. Nc3 {[%clk 0:00:04]}  Nb7 {[%clk 0:00:21]} 45. b4 {[%clk 0:00:03]}  Bd8 {[%clk 0:00:16]} 46. Kb3 {[%clk 0:00:02]}  Bb6 {[%clk 0:00:16]} 47. Bxb6 {[%clk 0:00:02]}  Kxb6 {[%clk 0:00:17]} 48. Ne2 {[%clk 0:00:02]}  f6 {[%clk 0:00:13]} 0-1


[Site "https://www.chess.com"]

[Event "Titled Tuesday Blitz June 21 Late 2022"]
[White "Silvestre, Christian"]
[Black "Golubev, Mikhail"]
[WhiteFideId "30956269"]
[BlackFideId "14100983"]
[WhiteElo "2433"]
[BlackElo "2374"]
[Result "0-1"]
[Round "10"]
[TimeControl "180+1"]
[Date "2022.06.22"]
[WhiteClock "0:00:10"]
[BlackClock "0:00:17"]

1. e4 {[%clk 0:03:00]}  c5 {[%clk 0:02:57]} 2. Nc3 {[%clk 0:03:00]}  d6 {[%clk 0:02:55]} 3. Bc4 {[%clk 0:02:56]}  Nc6 {[%clk 0:02:52]} 4. d3 {[%clk 0:02:52]}  e6 {[%clk 0:02:48]} 5. f4 {[%clk 0:02:50]}  a6 {[%clk 0:02:46]} 6. Nf3 {[%clk 0:02:48]}  b5 {[%clk 0:02:44]} 7. Bb3 {[%clk 0:02:48]}  b4 {[%clk 0:02:35]} 8. Ne2 {[%clk 0:02:46]}  Nf6 {[%clk 0:02:35]} 9. O-O {[%clk 0:02:42]}  Be7 {[%clk 0:02:34]} 10. Kh1 {[%clk 0:02:42]}  O-O {[%clk 0:02:29]} 11. Bd2 {[%clk 0:02:39]}  d5 {[%clk 0:02:21]} 12. Ne5 {[%clk 0:02:24]}  Bb7 {[%clk 0:02:07]} 13. Nxc6 {[%clk 0:02:12]}  Bxc6 {[%clk 0:02:08]} 14. e5 {[%clk 0:02:09]}  Nd7 {[%clk 0:02:08]} 15. c3 {[%clk 0:02:08]}  a5 {[%clk 0:01:48]} 16. d4 {[%clk 0:02:00]}  a4 {[%clk 0:01:37]} 17. Bc2 {[%clk 0:01:58]}  Bb5 {[%clk 0:01:23]} 18. Rf3 {[%clk 0:01:50]}  b3 {[%clk 0:01:16]} 19. Bd3 {[%clk 0:01:15]}  Bxd3 {[%clk 0:01:14]} 20. Rxd3 {[%clk 0:01:16]}  Nb6 {[%clk 0:01:06]} 21. axb3 {[%clk 0:01:12]}  axb3 {[%clk 0:01:04]} 22. Rxa8 {[%clk 0:01:10]}  Qxa8 {[%clk 0:01:04]} 23. Rh3 {[%clk 0:01:09]}  Nc4 {[%clk 0:00:59]} 24. Bc1 {[%clk 0:00:54]}  g6 {[%clk 0:00:50]} 25. Qxb3 {[%clk 0:00:50]}  Rb8 {[%clk 0:00:49]} 26. Qc2 {[%clk 0:00:44]}  Qa2 {[%clk 0:00:25]} 27. Rd3 {[%clk 0:00:22]}  Nxb2 {[%clk 0:00:20]} 28. Rd2 {[%clk 0:00:22]}  Qa1 {[%clk 0:00:20]} 29. Qxb2 {[%clk 0:00:16]}  Rxb2 {[%clk 0:00:19]} 30. Rxb2 {[%clk 0:00:16]}  Kg7 {[%clk 0:00:18]} 31. g4 {[%clk 0:00:15]}  cxd4 {[%clk 0:00:18]} 32. cxd4 {[%clk 0:00:14]}  Ba3 {[%clk 0:00:17]} 33. Rc2 {[%clk 0:00:14]}  Qb1 {[%clk 0:00:15]} 34. Rc3 {[%clk 0:00:12]}  Qe4+ {[%clk 0:00:15]} 35. Kg1 {[%clk 0:00:10]}  Qxe2 {[%clk 0:00:15]} 36. Bxa3 {[%clk 0:00:09]}  Qe1+ {[%clk 0:00:15]} 37. Kg2 {[%clk 0:00:09]}  Qxc3 {[%clk 0:00:16]} 38. Bc5 {[%clk 0:00:09]}  Qd2+ {[%clk 0:00:15]} 39. Kg3 {[%clk 0:00:10]}  Qe3+ {[%clk 0:00:16]} 40. Kh4 {[%clk 0:00:09]}  Qxf4 {[%clk 0:00:16]} 41. h3 {[%clk 0:00:10]}  Qf2+ {[%clk 0:00:16]} 42. Kg5 {[%clk 0:00:10]}  h6# {[%clk 0:00:17]} 0-1


[Site "https://www.chess.com"]

[Event "Titled Tuesday Blitz June 21 Late 2022"]
[White "So, Wesley"]
[Black "Kamsky, Gata"]
[WhiteFideId "5202213"]
[BlackFideId "2000024"]
[WhiteElo "2742"]
[BlackElo "2645"]
[Result "1/2-1/2"]
[Round "10"]
[TimeControl "180+1"]
[Date "2022.06.21"]
[WhiteClock "0:00:06"]
[BlackClock "0:00:26"]

1. e4 {[%clk 0:03:00]}  e5 {[%clk 0:02:57]} 2. Nf3 {[%clk 0:03:01]}  Nc6 {[%clk 0:02:57]} 3. Bc4 {[%clk 0:03:01]}  Nf6 {[%clk 0:02:57]} 4. d3 {[%clk 0:03:02]}  h6 {[%clk 0:02:57]} 5. O-O {[%clk 0:03:01]}  d6 {[%clk 0:02:57]} 6. c3 {[%clk 0:03:01]}  g6 {[%clk 0:02:56]} 7. Re1 {[%clk 0:02:55]}  Bg7 {[%clk 0:02:56]} 8. Nbd2 {[%clk 0:02:53]}  O-O {[%clk 0:02:55]} 9. Nf1 {[%clk 0:02:52]}  Na5 {[%clk 0:02:54]} 10. Bb5 {[%clk 0:02:49]}  a6 {[%clk 0:02:54]} 11. Ba4 {[%clk 0:02:49]}  b5 {[%clk 0:02:55]} 12. Bc2 {[%clk 0:02:50]}  c5 {[%clk 0:02:55]} 13. d4 {[%clk 0:02:42]}  cxd4 {[%clk 0:02:54]} 14. cxd4 {[%clk 0:02:43]}  exd4 {[%clk 0:02:52]} 15. Nxd4 {[%clk 0:02:43]}  Bb7 {[%clk 0:02:50]} 16. Ng3 {[%clk 0:02:43]}  Re8 {[%clk 0:02:42]} 17. a4 {[%clk 0:02:40]}  b4 {[%clk 0:02:25]} 18. b3 {[%clk 0:02:34]}  Rc8 {[%clk 0:02:22]} 19. Rb1 {[%clk 0:02:18]}  d5 {[%clk 0:02:18]} 20. e5 {[%clk 0:02:14]}  Ne4 {[%clk 0:02:18]} 21. e6 {[%clk 0:01:55]}  Bxd4 {[%clk 0:01:59]} 22. Qxd4 {[%clk 0:01:43]}  Rxc2 {[%clk 0:01:59]} 23. Bxh6 {[%clk 0:01:44]}  f6 {[%clk 0:01:41]} 24. f3 {[%clk 0:01:24]}  Nc6 {[%clk 0:01:39]} 25. Qd1 {[%clk 0:01:13]}  Nxg3 {[%clk 0:01:01]} 26. Qxc2 {[%clk 0:01:14]}  Nf5 {[%clk 0:01:01]} 27. Bd2 {[%clk 0:01:14]}  Qb6+ {[%clk 0:00:57]} 28. Kh1 {[%clk 0:01:09]}  Kg7 {[%clk 0:00:57]} 29. h3 {[%clk 0:01:08]}  Ncd4 {[%clk 0:00:51]} 30. Qd3 {[%clk 0:00:59]}  Nxe6 {[%clk 0:00:50]} 31. Rbc1 {[%clk 0:00:58]}  Nc5 {[%clk 0:00:41]} 32. Qc2 {[%clk 0:00:55]}  Rxe1+ {[%clk 0:00:39]} 33. Rxe1 {[%clk 0:00:52]}  Kf7 {[%clk 0:00:31]} 34. Bc1 {[%clk 0:00:30]}  Ne6 {[%clk 0:00:31]} 35. Bb2 {[%clk 0:00:29]}  d4 {[%clk 0:00:31]} 36. Qc4 {[%clk 0:00:27]}  Ne3 {[%clk 0:00:31]} 37. Qd3 {[%clk 0:00:19]}  Nxg2 {[%clk 0:00:30]} 38. Rxe6 {[%clk 0:00:15]}  Qxe6 {[%clk 0:00:31]} 39. Kxg2 {[%clk 0:00:16]}  Qe3 {[%clk 0:00:29]} 40. Qc4+ {[%clk 0:00:09]}  Qe6 {[%clk 0:00:27]} 41. Qc7+ {[%clk 0:00:08]}  Qe7 {[%clk 0:00:27]} 42. Qxe7+ {[%clk 0:00:07]}  Kxe7 {[%clk 0:00:28]} 43. Bxd4 {[%clk 0:00:08]}  Kd6 {[%clk 0:00:26]} 44. Bxf6 {[%clk 0:00:08]}  Bd5 {[%clk 0:00:27]} 45. a5 {[%clk 0:00:08]}  Bxb3 {[%clk 0:00:26]} 46. Kf2 {[%clk 0:00:08]}  Be6 {[%clk 0:00:26]} 47. Ke3 {[%clk 0:00:07]}  Bxh3 {[%clk 0:00:25]} 48. Kd4 {[%clk 0:00:06]}  b3 {[%clk 0:00:25]} 49. Kc3 {[%clk 0:00:06]}  Be6 {[%clk 0:00:26]} 50. f4 {[%clk 0:00:06]} 1/2-1/2


[Site "https://www.chess.com"]

[Event "Titled Tuesday Blitz June 21 Late 2022"]
[White "Tologon tegin, Semetei"]
[Black "Domingo Nunez, Alejandro"]
[WhiteFideId "13800574"]
[BlackFideId "22245561"]
[WhiteElo "2174"]
[BlackElo "2215"]
[Result "1-0"]
[Round "10"]
[TimeControl "180+1"]
[Date "2022.06.21"]
[WhiteClock "0:02:06"]
[BlackClock "0:00:50"]

1. e4 {[%clk 0:03:00]}  g6 {[%clk 0:02:59]} 2. d4 {[%clk 0:02:59]}  Bg7 {[%clk 0:03:00]} 3. Nc3 {[%clk 0:02:59]}  c6 {[%clk 0:03:00]} 4. f4 {[%clk 0:02:57]}  d5 {[%clk 0:03:01]} 5. e5 {[%clk 0:02:57]}  Nh6 {[%clk 0:03:02]} 6. Bd3 {[%clk 0:02:53]}  O-O {[%clk 0:02:58]} 7. Nf3 {[%clk 0:02:50]}  f6 {[%clk 0:02:57]} 8. O-O {[%clk 0:02:47]}  Bg4 {[%clk 0:02:51]} 9. Be3 {[%clk 0:02:43]}  Nd7 {[%clk 0:02:48]} 10. Ne2 {[%clk 0:02:36]}  Qb6 {[%clk 0:02:44]} 11. Rb1 {[%clk 0:02:34]}  Bxf3 {[%clk 0:02:10]} 12. Rxf3 {[%clk 0:02:31]}  fxe5 {[%clk 0:02:06]} 13. dxe5 {[%clk 0:02:31]}  c5 {[%clk 0:01:57]} 14. Bxg6 {[%clk 0:02:29]}  d4 {[%clk 0:01:23]} 15. Be4 {[%clk 0:02:26]}  Rad8 {[%clk 0:00:51]} 16. Bf2 {[%clk 0:02:18]}  Ng4 {[%clk 0:00:51]} 17. Bh4 {[%clk 0:02:13]}  Qh6 {[%clk 0:00:51]} 18. Rh3 {[%clk 0:02:07]}  Qxf4 {[%clk 0:00:50]} 19. Nxf4 {[%clk 0:02:06]} 1-0


[Site "https://www.chess.com"]

[Event "Titled Tuesday Blitz June 21 Late 2022"]
[White "Urbina Perez, Juan Antonio"]
[Black "Tanenbaum, Zachary"]
[WhiteFideId "2217368"]
[BlackFideId "2060850"]
[WhiteElo "2192"]
[BlackElo "2175"]
[Result "0-1"]
[Round "10"]
[TimeControl "180+1"]
[Date "2022.06.21"]
[WhiteClock "0:00:08"]
[BlackClock "0:00:39"]

1. e4 {[%clk 0:03:00]}  e5 {[%clk 0:02:56]} 2. Nf3 {[%clk 0:03:00]}  Nc6 {[%clk 0:02:56]} 3. Bb5 {[%clk 0:03:01]}  a6 {[%clk 0:02:56]} 4. Ba4 {[%clk 0:03:01]}  d6 {[%clk 0:02:56]} 5. c3 {[%clk 0:02:58]}  Nf6 {[%clk 0:02:56]} 6. d3 {[%clk 0:02:58]}  Be7 {[%clk 0:02:56]} 7. O-O {[%clk 0:02:58]}  O-O {[%clk 0:02:56]} 8. Nbd2 {[%clk 0:02:59]}  b5 {[%clk 0:02:56]} 9. Bb3 {[%clk 0:02:59]}  Nb8 {[%clk 0:02:54]} 10. Re1 {[%clk 0:02:58]}  Nbd7 {[%clk 0:02:54]} 11. Nf1 {[%clk 0:02:59]}  Bb7 {[%clk 0:02:52]} 12. Ng3 {[%clk 0:02:58]}  h6 {[%clk 0:02:44]} 13. Nf5 {[%clk 0:02:58]}  c5 {[%clk 0:02:32]} 14. Nxe7+ {[%clk 0:02:37]}  Qxe7 {[%clk 0:02:32]} 15. Bc2 {[%clk 0:02:35]}  Rfe8 {[%clk 0:02:18]} 16. Nh4 {[%clk 0:02:33]}  Nf8 {[%clk 0:02:13]} 17. Nf5 {[%clk 0:02:33]}  Qd8 {[%clk 0:02:11]} 18. Ng3 {[%clk 0:02:33]}  Ng6 {[%clk 0:02:10]} 19. a4 {[%clk 0:02:32]}  d5 {[%clk 0:02:03]} 20. Qf3 {[%clk 0:02:19]}  Nh4 {[%clk 0:01:57]} 21. Qe2 {[%clk 0:02:19]}  c4 {[%clk 0:01:53]} 22. dxc4 {[%clk 0:02:10]}  dxc4 {[%clk 0:01:28]} 23. Be3 {[%clk 0:01:58]}  Ng6 {[%clk 0:01:23]} 24. Red1 {[%clk 0:01:56]}  Qc7 {[%clk 0:01:17]} 25. a5 {[%clk 0:01:55]}  Nf4 {[%clk 0:01:16]} 26. Qf3 {[%clk 0:01:53]}  Nd3 {[%clk 0:01:12]} 27. Bxd3 {[%clk 0:01:05]}  cxd3 {[%clk 0:01:12]} 28. Rxd3 {[%clk 0:01:06]}  Qc4 {[%clk 0:01:11]} 29. Rad1 {[%clk 0:01:06]}  Nxe4 {[%clk 0:00:56]} 30. Qg4 {[%clk 0:00:59]}  Nxf2 {[%clk 0:00:50]} 31. Qxc4 {[%clk 0:00:20]}  bxc4 {[%clk 0:00:51]} 32. Bxf2 {[%clk 0:00:20]}  cxd3 {[%clk 0:00:51]} 33. Rxd3 {[%clk 0:00:21]}  Rad8 {[%clk 0:00:50]} 34. Re3 {[%clk 0:00:21]}  Rd2 {[%clk 0:00:45]} 35. b4 {[%clk 0:00:14]}  g6 {[%clk 0:00:44]} 36. h3 {[%clk 0:00:14]}  f5 {[%clk 0:00:44]} 37. Nf1 {[%clk 0:00:10]}  f4 {[%clk 0:00:43]} 38. Nxd2 {[%clk 0:00:09]}  fxe3 {[%clk 0:00:43]} 39. Bxe3 {[%clk 0:00:10]}  Kg7 {[%clk 0:00:41]} 40. Nc4 {[%clk 0:00:09]}  Rc8 {[%clk 0:00:41]} 41. Nd6 {[%clk 0:00:08]}  Rxc3 {[%clk 0:00:40]} 42. Bc5 {[%clk 0:00:08]}  Bc6 {[%clk 0:00:39]} 0-1


[Site "https://www.chess.com"]

[Event "Titled Tuesday Blitz June 21 Late 2022"]
[White "Vu, Bui Thi Thanh Van"]
[Black "Avazkhonov, Alikhon"]
[WhiteFideId "12408921"]
[BlackFideId "14208504"]
[WhiteElo "1602"]
[BlackElo "1739"]
[Result "1-0"]
[Round "10"]
[TimeControl "180+1"]
[Date "2022.06.22"]
[WhiteClock "0:01:24"]
[BlackClock "0:00:21"]

1. d4 {[%clk 0:02:35]}  d5 {[%clk 0:02:59]} 2. Nf3 {[%clk 0:02:35]}  c6 {[%clk 0:02:58]} 3. e3 {[%clk 0:02:33]}  e6 {[%clk 0:02:54]} 4. Bd3 {[%clk 0:02:32]}  f5 {[%clk 0:02:54]} 5. c4 {[%clk 0:02:32]}  Nf6 {[%clk 0:02:54]} 6. O-O {[%clk 0:02:32]}  Bd6 {[%clk 0:02:53]} 7. b3 {[%clk 0:02:32]}  Qe7 {[%clk 0:02:52]} 8. Bb2 {[%clk 0:02:33]}  O-O {[%clk 0:02:52]} 9. Qc1 {[%clk 0:02:33]}  b6 {[%clk 0:02:47]} 10. Ba3 {[%clk 0:02:34]}  c5 {[%clk 0:02:48]} 11. cxd5 {[%clk 0:02:29]}  exd5 {[%clk 0:02:47]} 12. Nc3 {[%clk 0:02:25]}  Ba6 {[%clk 0:02:06]} 13. Qd1 {[%clk 0:02:08]}  Bxd3 {[%clk 0:02:03]} 14. Qxd3 {[%clk 0:02:07]}  g6 {[%clk 0:02:03]} 15. dxc5 {[%clk 0:02:06]}  Bxc5 {[%clk 0:01:44]} 16. Nxd5 {[%clk 0:02:04]}  Qb7 {[%clk 0:01:44]} 17. Nxf6+ {[%clk 0:02:01]}  Rxf6 {[%clk 0:01:45]} 18. Bxc5 {[%clk 0:02:01]}  bxc5 {[%clk 0:01:46]} 19. Qc3 {[%clk 0:01:50]}  Qb6 {[%clk 0:01:33]} 20. Ne5 {[%clk 0:01:47]}  Re6 {[%clk 0:01:26]} 21. Rad1 {[%clk 0:01:46]}  Na6 {[%clk 0:01:20]} 22. Nd7 {[%clk 0:01:44]}  Qc6 {[%clk 0:01:18]} 23. Ne5 {[%clk 0:01:41]}  Qc7 {[%clk 0:01:16]} 24. Nf3 {[%clk 0:01:36]}  Rd8 {[%clk 0:01:04]} 25. Qc4 {[%clk 0:01:35]}  Re8 {[%clk 0:00:21]} 26. Ng5 {[%clk 0:01:29]}  Qb6 {[%clk 0:00:22]} 27. Nxe6 {[%clk 0:01:28]}  Rxe6 {[%clk 0:00:22]} 28. Rd7 {[%clk 0:01:25]}  Qc6 {[%clk 0:00:22]} 29. Rfd1 {[%clk 0:01:25]}  Nc7 {[%clk 0:00:21]} 30. Qc3 {[%clk 0:01:24]} 1-0


[Site "https://www.chess.com"]

[Event "Titled Tuesday Blitz June 21 Late 2022"]
[White "Wagner, Dinara"]
[Black "Al-Tarboush, Ward"]
[WhiteFideId "24157570"]
[BlackFideId "7601450"]
[WhiteElo "2216"]
[BlackElo "2249"]
[Result "1-0"]
[Round "10"]
[TimeControl "180+1"]
[Date "2022.06.21"]
[WhiteClock "0:01:39"]
[BlackClock "0:01:24"]

1. d4 {[%clk 0:03:00]}  b6 {[%clk 0:02:55]} 2. c4 {[%clk 0:02:58]}  Bb7 {[%clk 0:02:55]} 3. Nc3 {[%clk 0:02:58]}  Nf6 {[%clk 0:02:52]} 4. f3 {[%clk 0:02:58]}  d5 {[%clk 0:02:52]} 5. cxd5 {[%clk 0:02:58]}  Nxd5 {[%clk 0:02:53]} 6. e4 {[%clk 0:02:58]}  Nxc3 {[%clk 0:02:54]} 7. bxc3 {[%clk 0:02:58]}  e6 {[%clk 0:02:54]} 8. Bd3 {[%clk 0:02:55]}  Be7 {[%clk 0:02:54]} 9. Ne2 {[%clk 0:02:55]}  c5 {[%clk 0:02:55]} 10. O-O {[%clk 0:02:53]}  O-O {[%clk 0:02:54]} 11. Be3 {[%clk 0:02:53]}  Qc7 {[%clk 0:02:50]} 12. Rc1 {[%clk 0:02:50]}  Nc6 {[%clk 0:02:49]} 13. e5 {[%clk 0:02:45]}  Rfd8 {[%clk 0:02:45]} 14. Bb1 {[%clk 0:02:44]}  Na5 {[%clk 0:02:37]} 15. Qd3 {[%clk 0:02:38]}  g6 {[%clk 0:02:36]} 16. Bh6 {[%clk 0:02:38]}  Qc8 {[%clk 0:02:29]} 17. Qe3 {[%clk 0:02:33]}  Ba6 {[%clk 0:02:25]} 18. Rfe1 {[%clk 0:02:30]}  Qd7 {[%clk 0:02:16]} 19. Rcd1 {[%clk 0:02:13]}  Rac8 {[%clk 0:02:15]} 20. Qf4 {[%clk 0:02:12]}  Qa4 {[%clk 0:02:13]} 21. Ng3 {[%clk 0:02:07]}  cxd4 {[%clk 0:02:10]} 22. cxd4 {[%clk 0:02:04]}  Qe8 {[%clk 0:01:58]} 23. Ne4 {[%clk 0:02:00]}  Kh8 {[%clk 0:01:46]} 24. Nf6 {[%clk 0:01:55]}  Qc6 {[%clk 0:01:38]} 25. Qh4 {[%clk 0:01:55]}  Rg8 {[%clk 0:01:24]} 26. Bf8 {[%clk 0:01:45]}  Rg7 {[%clk 0:01:24]} 27. Bxg7+ {[%clk 0:01:38]}  Kxg7 {[%clk 0:01:23]} 28. Qxh7+ {[%clk 0:01:38]}  Kf8 {[%clk 0:01:24]} 29. Qh8# {[%clk 0:01:39]} 1-0


[Site "https://www.chess.com"]